Workbook

Sheet Sheet1
A1: 2017年公开招聘事业编制工作人员笔试、面试总成绩及进入体检人员名单
A2: 报名序号 | B2: 姓名 | C2: 岗位类别 | D2: 招考人数 | E2: 准考证号 | F2: 笔试成绩 | G2: 笔试排名 | H2: 笔试成绩折算50% | I2: 面试成绩 | J2: 面试排名 | K2: 面试成绩折算50% | L2: 总成绩 | M2: 总排名 | N2: 是否进入体检 | O2: 备注
A3: 1 | B3: 江华叶 | C3: 01管理岗位 | D3: 1 | E3: 50301870314 | F3: 64 | G3: 1 | H3: =F3/2 -> 32 | I3: 79 | J3: 1 | K3: =I3/2 -> 39.5 | L3: =H3+K3 -> 71.5 | M3: 1 | N3: 是
A4: 2 | B4: 张雯 | C4: 01管理岗位 | D4: 1 | E4: 50301870515 | F4: 64 | G4: 1 | H4: 32 | I4: 75.6 | J4: 2 | K4: =I4/2 -> 37.8 | L4: =H4+K4 -> 69.8 | M4: 2
A5: 3 | B5: 孙金良 | C5: 01管理岗位 | D5: 1 | E5: 50301870405 | F5: 64 | G5: 1 | H5: 32 | I5: 缺考 | O5: 面试缺考
A6: 4 | B6: 吴燕 | C6: 02专业技术岗位 | D6: 1 | E6: 50101871719 | F6: 50 | G6: 1 | H6: 25 | I6: 71.4 | J6: 1 | K6: =I6/2 -> 35.7 | L6: =H6+K6 -> 60.7 | M6: 1 | N6: 是
A7: 5 | B7: 孙芳芳 | C7: 03专业技术岗位 | D7: 1 | E7: 50101871605 | F7: 47 | G7: 1 | H7: 23.5 | I7: 88.8 | J7: 1 | K7: 44.4 | L7: 67.9 | M7: 1 | N7: 是
A8: 6 | B8: 顾尚梅 | C8: 03专业技术岗位 | D8: 1 | E8: 50101871724 | F8: 47 | G8: 1 | H8: 23.5 | I8: 82.2 | J8: 2 | K8: 41.1 | L8: 64.6 | M8: 2
A9: 7 | B9: 谌玄圣 | C9: 03专业技术岗位 | D9: 1 | E9: 50101871606 | F9: 46 | G9: 2 | H9: 23 | I9: 75.8 | J9: 3 | K9: 37.9 | L9: 60.9 | M9: 3
A10: 8 | B10: 黄茜 | C10: 04专业技术岗位 | D10: 1 | E10: 50101871429 | F10: 42 | G10: 1 | H10: 21 | I10: 73.6 | J10: 1 | K10: 36.8 | L10: 57.8 | M10: 1 | N10: 是
A11: 9 | B11: 黎秋红 | C11: 04专业技术岗位 | D11: 1 | E11: 50101871424 | F11: 40 | G11: 2 | H11: 20 | I11: 69.6 | J11: 2 | K11: 34.8 | L11: 54.8 | M11: 2
A12: 10 | B12: 杨应昌 | C12: 05专业技术岗位 | D12: 1 | E12: 50101871704 | F12: 42 | G12: 1 | H12: 21 | I12: 86.8 | J12: 1 | K12: 43.4 | L12: 64.4 | M12: 1 | N12: 是
A13: 11 | B13: 何金洪 | C13: 06专业技术岗位 | D13: 26 | E13: 50101871607 | F13: 57 | G13: 1 | H13: 28.5 | I13: 90 | J13: 1 | K13: 45 | L13: 73.5 | M13: 1 | N13: 是
A14: 12 | B14: 郭磊 | C14: 06专业技术岗位 | D14: 26 | E14: 50101871630 | F14: 52 | G14: 2 | H14: 26 | I14: 86.4 | J14: 9 | K14: 43.2 | L14: 69.2 | M14: 2 | N14: 是
A15: 13 | B15: 杨鲤 | C15: 06专业技术岗位 | D15: 26 | E15: 50101871623 | F15: 50 | G15: 4 | H15: 25 | I15: 87.6 | J15: 6 | K15: 43.8 | L15: 68.8 | M15: 3 | N15: 是
A16: 14 | B16: 李薇 | C16: 06专业技术岗位 | D16: 26 | E16: 50101871711 | F16: 50 | G16: 4 | H16: 25 | I16: 86 | J16: 11 | K16: 43 | L16: 68 | M16: 4 | N16: 是
A17: 15 | B17: 宋昭银 | C17: 06专业技术岗位 | D17: 26 | E17: 50101871715 | F17: 50 | G17: 4 | H17: 25 | I17: 85.8 | J17: 12 | K17: 42.9 | L17: 67.9 | M17: 5 | N17: 是
A18: 16 | B18: 曾燕 | C18: 06专业技术岗位 | D18: 26 | E18: 50101871728 | F18: 52 | G18: 2 | H18: 26 | I18: 83.2 | J18: 18 | K18: 41.6 | L18: 67.6 | M18: 6 | N18: 是
A19: 17 | B19: 李琳 | C19: 06专业技术岗位 | D19: 26 | E19: 50101871604 | F19: 46 | G19: 7 | H19: 23 | I19: 89 | J19: 3 | K19: 44.5 | L19: 67.5 | M19: 7 | N19: 是
A20: 18 | B20: 马菁 | C20: 06专业技术岗位 | D20: 26 | E20: 50101871407 | F20: 47 | G20: 6 | H20: 23.5 | I20: 85.8 | J20: 13 | K20: 42.9 | L20: 66.4 | M20: 8 | N20: 是
A21: 19 | B21: 林楠 | C21: 06专业技术岗位 | D21: 26 | E21: 50101871509 | F21: 43 | G21: 10 | H21: 21.5 | I21: 89.4 | J21: 2 | K21: 44.7 | L21: 66.2 | M21: 9 | N21: 是
A22: 20 | B22: 唐敏 | C22: 06专业技术岗位 | D22: 26 | E22: 50101871515 | F22: 48 | G22: 5 | H22: 24 | I22: 84 | J22: 17 | K22: 42 | L22: 66 | M22: 10 | N22: 是
A23: 21 | B23: 彭银霜 | C23: 06专业技术岗位 | D23: 26 | E23: 50101871707 | F23: 48 | G23: 5 | H23: 24 | I23: 83.2 | J23: 18 | K23: 41.6 | L23: 65.6 | M23: 11 | N23: 是
A24: 22 | B24: 孙磊 | C24: 06专业技术岗位 | D24: 26 | E24: 50101871722 | F24: 46 | G24: 7 | H24: 23 | I24: 85 | J24: 14 | K24: 42.5 | L24: 65.5 | M24: 12 | N24: 是
A25: 23 | B25: 罗星星 | C25: 06专业技术岗位 | D25: 26 | E25: 50101871507 | F25: 44 | G25: 9 | H25: 22 | I25: 86.2 | J25: 10 | K25: 43.1 | L25: 65.1 | M25: 13 | N25: 是
A26: 24 | B26: 王翼铭 | C26: 06专业技术岗位 | D26: 26 | E26: 50101871520 | F26: 43 | G26: 10 | H26: 21.5 | I26: 87 | J26: 7 | K26: 43.5 | L26: 65 | M26: 14 | N26: 是
A27: 25 | B27: 张涛 | C27: 06专业技术岗位 | D27: 26 | E27: 50101871512 | F27: 41 | G27: 11 | H27: 20.5 | I27: 88.6 | J27: 4 | K27: 44.3 | L27: 64.8 | M27: 15 | N27: 是
A28: 26 | B28: 陈璇 | C28: 06专业技术岗位 | D28: 26 | E28: 50101871710 | F28: 43 | G28: 10 | H28: 21.5 | I28: 86.6 | J28: 8 | K28: 43.3 | L28: 64.8 | M28: 15 | N28: 是
A29: 27 | B29: 詹会 | C29: 06专业技术岗位 | D29: 26 | E29: 50101871505 | F29: 44 | G29: 9 | H29: 22 | I29: 84.8 | J29: 15 | K29: 42.4 | L29: 64.4 | M29: 16 | N29: 是
A30: 28 | B30: 谢锦瑜 | C30: 06专业技术岗位 | D30: 26 | E30: 50101871611 | F30: 47 | G30: 6 | H30: 23.5 | I30: 81.6 | J30: 22 | K30: 40.8 | L30: 64.3 | M30: 17 | N30: 是
A31: 29 | B31: 王程 | C31: 06专业技术岗位 | D31: 26 | E31: 50101871430 | F31: 43 | G31: 10 | H31: 21.5 | I31: 84.4 | J31: 16 | K31: 42.2 | L31: 63.7 | M31: 18 | N31: 是
A32: 30 | B32: 刘蜀凤 | C32: 06专业技术岗位 | D32: 26 | E32: 50101871624 | F32: 39 | G32: 12 | H32: 19.5 | I32: 88 | J32: 5 | K32: 44 | L32: 63.5 | M32: 19 | N32: 是
A33: 31 | B33: 李佳 | C33: 06专业技术岗位 | D33: 26 | E33: 50101871402 | F33: 51 | G33: 3 | H33: 25.5 | I33: 75.2 | J33: 31 | K33: 37.6 | L33: 63.1 | M33: 20 | N33: 是
A34: 32 | B34: 张静仪 | C34: 06专业技术岗位 | D34: 26 | E34: 50101871416 | F34: 47 | G34: 6 | H34: =F34/2 -> 23.5 | I34: 78.4 | J34: 24 | K34: =I34/2 -> 39.2 | L34: =H34+K34 -> 62.7 | M34: 21 | N34: 是
A35: 33 | B35: 段黔琳 | C35: 06专业技术岗位 | D35: 26 | E35: 50101871522 | F35: 36 | G35: 15 | H35: 18 | I35: 89.4 | J35: 2 | K35: 44.7 | L35: 62.7 | M35: 21 | N35: 是
A36: 34 | B36: 王庆 | C36: 06专业技术岗位 | D36: 26 | E36: 50101871519 | F36: 41 | G36: 11 | H36: 20.5 | I36: 82.8 | J36: 19 | K36: 41.4 | L36: 61.9 | M36: 22 | N36: 是
A37: 35 | B37: 陈梅 | C37: 06专业技术岗位 | D37: 26 | E37: 50101871727 | F37: 48 | G37: 5 | H37: 24 | I37: 75.4 | J37: 30 | K37: 37.7 | L37: 61.7 | M37: 23 | N37: 是
A38: 36 | B38: 吴钟英 | C38: 06专业技术岗位 | D38: 26 | E38: 50101871426 | F38: 50 | G38: 4 | H38: 25 | I38: 73 | J38: 34 | K38: 36.5 | L38: 61.5 | M38: 24 | N38: 是
A39: 37 | B39: 唐琪 | C39: 06专业技术岗位 | D39: 26 | E39: 50101871401 | F39: 43 | G39: 10 | H39: 21.5 | I39: 80 | J39: 23 | K39: 40 | L39: 61.5 | M39: 24
A40: 38 | B40: 邱继瑶 | C40: 06专业技术岗位 | D40: 26 | E40: 50101871609 | F40: 38 | G40: 13 | H40: 19 | I40: 84.8 | J40: 15 | K40: 42.4 | L40: 61.4 | M40: 25
A41: 39 | B41: 田连英 | C41: 06专业技术岗位 | D41: 26 | E41: 50101871504 | F41: 41 | G41: 11 | H41: 20.5 | I41: 81.8 | J41: 21 | K41: 40.9 | L41: 61.4 | M41: 25
A42: 40 | B42: 陈宁 | C42: 06专业技术岗位 | D42: 26 | E42: 50101871620 | F42: 48 | G42: 5 | H42: 24 | I42: 74.4 | J42: 33 | K42: 37.2 | L42: 61.2 | M42: 26
A43: 41 | B43: 周庭俊 | C43: 06专业技术岗位 | D43: 26 | E43: 50101871717 | F43: 45 | G43: 8 | H43: 22.5 | I43: 77 | J43: 27 | K43: 38.5 | L43: 61 | M43: 27
A44: 42 | B44: 詹雲 | C44: 06专业技术岗位 | D44: 26 | E44: 50101871528 | F44: 45 | G44: 8 | H44: 22.5 | I44: 76.8 | J44: 28 | K44: 38.4 | L44: 60.9 | M44: 28
A45: 43 | B45: 韩文洲 | C45: 06专业技术岗位 | D45: 26 | E45: 50101871411 | F45: 47 | G45: 6 | H45: 23.5 | I45: 74.6 | J45: 32 | K45: 37.3 | L45: 60.8 | M45: 29
A46: 44 | B46: 周艳梅 | C46: 06专业技术岗位 | D46: 26 | E46: 50101871420 | F46: 50 | G46: 4 | H46: 25 | I46: 71.6 | J46: 37 | K46: 35.8 | L46: 60.8 | M46: 29
A47: 45 | B47: 陈锐 | C47: 06专业技术岗位 | D47: 26 | E47: 50101871414 | F47: 39 | G47: 12 | H47: 19.5 | I47: 82.2 | J47: 20 | K47: 41.1 | L47: 60.6 | M47: 30
A48: 46 | B48: 张凤 | C48: 06专业技术岗位 | D48: 26 | E48: 50101871421 | F48: 52 | G48: 2 | H48: 26 | I48: 69.2 | J48: 40 | K48: 34.6 | L48: 60.6 | M48: 30
A49: 47 | B49: 王丽 | C49: 06专业技术岗位 | D49: 26 | E49: 50101871720 | F49: 48 | G49: 5 | H49: 24 | I49: 73 | J49: 34 | K49: 36.5 | L49: 60.5 | M49: 31
A50: 48 | B50: 滕绍桦 | C50: 06专业技术岗位 | D50: 26 | E50: 50101871610 | F50: 46 | G50: 7 | H50: 23 | I50: 74.4 | J50: 33 | K50: 37.2 | L50: 60.2 | M50: 32
A51: 49 | B51: 彭熙熙 | C51: 06专业技术岗位 | D51: 26 | E51: 50101871517 | F51: 43 | G51: 10 | H51: 21.5 | I51: 77.2 | J51: 26 | K51: 38.6 | L51: 60.1 | M51: 33
A52: 50 | B52: 吴玲 | C52: 06专业技术岗位 | D52: 26 | E52: 50101871508 | F52: 44 | G52: 9 | H52: 22 | I52: 76.2 | J52: 29 | K52: 38.1 | L52: 60.1 | M52: 33
A53: 51 | B53: 曾启胜 | C53: 06专业技术岗位 | D53: 26 | E53: 50101871617 | F53: 48 | G53: 5 | H53: 24 | I53: 72 | J53: 36 | K53: 36 | L53: 60 | M53: 34
A54: 52 | B54: 王贤淦 | C54: 06专业技术岗位 | D54: 26 | E54: 50101871516 | F54: 47 | G54: 6 | H54: 23.5 | I54: 71.6 | J54: 37 | K54: 35.8 | L54: 59.3 | M54: 35
A55: 53 | B55: 牟永桃 | C55: 06专业技术岗位 | D55: 26 | E55: 50101871725 | F55: 46 | G55: 7 | H55: 23 | I55: 71.2 | J55: 38 | K55: 35.6 | L55: 58.6 | M55: 36
A56: 54 | B56: 周瑾 | C56: 06专业技术岗位 | D56: 26 | E56: 50101871526 | F56: 44 | G56: 9 | H56: 22 | I56: 72.4 | J56: 35 | K56: 36.2 | L56: 58.2 | M56: 37
A57: 55 | B57: 申洁 | C57: 06专业技术岗位 | D57: 26 | E57: 50101871408 | F57: 37 | G57: 14 | H57: 18.5 | I57: 78.4 | J57: 25 | K57: 39.2 | L57: 57.7 | M57: 38
A58: 56 | B58: 张晓 | C58: 06专业技术岗位 | D58: 26 | E58: 50101871524 | F58: 33 | G58: 17 | H58: 16.5 | I58: 81.8 | J58: 21 | K58: 40.9 | L58: 57.4 | M58: 39
A59: 57 | B59: 梅亚娟 | C59: 06专业技术岗位 | D59: 26 | E59: 50101871709 | F59: 39 | G59: 12 | H59: 19.5 | I59: 75.2 | J59: 31 | K59: 37.6 | L59: 57.1 | M59: 40
A60: 58 | B60: 李超 | C60: 06专业技术岗位 | D60: 26 | E60: 50101871601 | F60: 38 | G60: 13 | H60: 19 | I60: 70.6 | J60: 39 | K60: 35.3 | L60: 54.3 | M60: 41
A61: 59 | B61: 李晶晶 | C61: 06专业技术岗位 | D61: 26 | E61: 50101871706 | F61: 35 | G61: 16 | H61: 17.5 | I61: 71.6 | J61: 37 | K61: 35.8 | L61: 53.3 | M61: 41
A62: 60 | B62: 周庆 | C62: 06专业技术岗位 | D62: 26 | E62: 50101871721 | F62: 39 | G62: 12 | H62: 19.5 | I62: 缺考 | O62: 面试缺考
A63: 61 | B63: 周昕艾 | C63: 06专业技术岗位 | D63: 26 | E63: 50101871613 | F63: 38 | G63: 13 | H63: 19 | I63: 缺考 | O63: 面试缺考
A64: 62 | B64: 钟超 | C64: 07专业技术岗位 | D64: 5 | E64: 50101871712 | F64: 56 | G64: 1 | H64: 28 | I64: 88.4 | J64: 1 | K64: =I64/2 -> 44.2 | L64: =H64+K64 -> 72.2 | M64: 1 | N64: 是
A65: 63 | B65: 周玮艺 | C65: 07专业技术岗位 | D65: 5 | E65: 50101871413 | F65: 50 | G65: 2 | H65: 25 | I65: 87.2 | J65: 3 | K65: =I65/2 -> 43.6 | L65: =H65+K65 -> 68.6 | M65: 2 | N65: 是
A66: 64 | B66: 秦晨 | C66: 07专业技术岗位 | D66: 5 | E66: 50101871427 | F66: 46 | G66: 5 | H66: =F66/2 -> 23 | I66: 88.2 | J66: 2 | K66: =I66/2 -> 44.1 | L66: =H66+K66 -> 67.1 | M66: 3 | N66: 是
A67: 65 | B67: 郭慧娟 | C67: 07专业技术岗位 | D67: 5 | E67: 50101871627 | F67: 47 | G67: 4 | H67: =F67/2 -> 23.5 | I67: 85.4 | J67: 4 | K67: =I67/2 -> 42.7 | L67: =H67+K67 -> 66.2 | M67: 4 | N67: 是
A68: 66 | B68: 孙诗桅 | C68: 07专业技术岗位 | D68: 5 | E68: 50101871716 | F68: 44 | G68: 7 | H68: =F68/2 -> 22 | I68: 79.6 | J68: 5 | K68: =I68/2 -> 39.8 | L68: =H68+K68 -> 61.8 | M68: 5 | N68: 是
A69: 67 | B69: 曾争 | C69: 07专业技术岗位 | D69: 5 | E69: 50101871619 | F69: 45 | G69: 6 | H69: 22.5 | I69: 78.2 | J69: 6 | K69: 39.1 | L69: 61.6 | M69: 6
A70: 68 | B70: 杨林 | C70: 07专业技术岗位 | D70: 5 | E70: 50101871511 | F70: 46 | G70: 5 | H70: 23 | I70: 77 | J70: 7 | K70: 38.5 | L70: 61.5 | M70: 7
A71: 69 | B71: 张婧 | C71: 07专业技术岗位 | D71: 5 | E71: 50101871714 | F71: 45 | G71: 6 | H71: 22.5 | I71: 76.4 | J71: 8 | K71: 38.2 | L71: 60.7 | M71: 8
A72: 70 | B72: 陈江瑜 | C72: 07专业技术岗位 | D72: 5 | E72: 50101871406 | F72: 44 | G72: 7 | H72: 22 | I72: 76 | J72: 9 | K72: 38 | L72: 60 | M72: 9
A73: 71 | B73: 王虹又 | C73: 07专业技术岗位 | D73: 5 | E73: 50101871626 | F73: 44 | G73: 7 | H73: 22 | I73: 74.2 | J73: 10 | K73: 37.1 | L73: 59.1 | M73: 10
A74: 72 | B74: 文茂菲 | C74: 07专业技术岗位 | D74: 5 | E74: 50101871525 | F74: 47 | G74: 4 | H74: 23.5 | I74: 70.6 | J74: 12 | K74: 35.3 | L74: 58.8 | M74: 11
A75: 73 | B75: 许丹 | C75: 07专业技术岗位 | D75: 5 | E75: 50101871503 | F75: 41 | G75: 8 | H75: 20.5 | I75: 73 | J75: 11 | K75: 36.5 | L75: 57 | M75: 12
A76: 74 | B76: 冉瑶 | C76: 07专业技术岗位 | D76: 5 | E76: 50101871726 | F76: 44 | G76: 7 | H76: 22 | I76: 67.6 | J76: 13 | K76: 33.8 | L76: 55.8 | M76: 13
A77: 75 | B77: 李俊 | C77: 07专业技术岗位 | D77: 5 | E77: 50101871409 | F77: 49 | G77: 3 | H77: 24.5 | I77: 缺考 | O77: 面试缺考
A78: 76 | B78: 李晓茹 | C78: 07专业技术岗位 | D78: 5 | E78: 50101871602 | F78: 41 | G78: 8 | H78: 20.5 | I78: 缺考 | O78: 面试缺考
A79: 77 | B79: 石坤 | C79: 07专业技术岗位 | D79: 5 | E79: 50101871518 | F79: 41 | G79: 8 | H79: 20.5 | I79: 缺考 | O79: 面试缺考
A80: 78 | B80: 申亮 | C80: 10专业技术岗位 | D80: 1 | E80: 50101871422 | F80: 52 | G80: 1 | H80: 26 | I80: 86.6 | J80: 1 | K80: 43.3 | L80: 69.3 | M80: 1 | N80: 是
A81: 79 | B81: 欧阳叶艮 | C81: 10专业技术岗位 | D81: 1 | E81: 50101871415 | F81: 52 | G81: 1 | H81: 26 | I81: 73.6 | J81: 2 | K81: 36.8 | L81: 62.8 | M81: 2
A82: 80 | B82: 田莉 | C82: 11专业技术岗位 | D82: 4 | E82: 50201870717 | F82: 73 | G82: 1 | H82: 36.5 | I82: 91.2 | J82: 1 | K82: 45.6 | L82: 82.1 | M82: 1 | N82: 是
A83: 81 | B83: 袁野 | C83: 11专业技术岗位 | D83: 4 | E83: 50201870619 | F83: 70 | G83: 3 | H83: 35 | I83: 90.8 | J83: 2 | K83: 45.4 | L83: 80.4 | M83: 2 | N83: 是
A84: 82 | B84: 余陈 | C84: 11专业技术岗位 | D84: 4 | E84: 50201870820 | F84: 69 | G84: 4 | H84: 34.5 | I84: 90.6 | J84: 3 | K84: 45.3 | L84: 79.8 | M84: 3 | N84: 是
A85: 83 | B85: 高莉 | C85: 11专业技术岗位 | D85: 4 | E85: 50201870706 | F85: 68 | G85: 5 | H85: 34 | I85: 88.2 | J85: 4 | K85: 44.1 | L85: 78.1 | M85: 4 | N85: 是
A86: 84 | B86: 田原 | C86: 11专业技术岗位 | D86: 4 | E86: 50201870630 | F86: 66 | G86: 7 | H86: 33 | I86: 85 | J86: 5 | K86: 42.5 | L86: 75.5 | M86: 5
A87: 85 | B87: 屠莉丽 | C87: 11专业技术岗位 | D87: 4 | E87: 50201870627 | F87: 67 | G87: 6 | H87: 33.5 | I87: 83 | J87: 6 | K87: 41.5 | L87: 75 | M87: 6
A88: 86 | B88: 胡倩倩 | C88: 11专业技术岗位 | D88: 4 | E88: 50201871216 | F88: 68 | G88: 5 | H88: 34 | I88: 79.4 | J88: 7 | K88: 39.7 | L88: 73.7 | M88: 7
A89: 87 | B89: 穆文丽 | C89: 11专业技术岗位 | D89: 4 | E89: 50201870623 | F89: 68 | G89: 5 | H89: 34 | I89: 79 | J89: 8 | K89: 39.5 | L89: 73.5 | M89: 8
A90: 88 | B90: 母晓霞 | C90: 11专业技术岗位 | D90: 4 | E90: 50201871019 | F90: 72 | G90: 2 | H90: 36 | I90: 73.8 | J90: 10 | K90: 36.9 | L90: 72.9 | M90: 9
A91: 89 | B91: 娄双伟 | C91: 11专业技术岗位 | D91: 4 | E91: 50201871208 | F91: 67 | G91: 6 | H91: 33.5 | I91: 75.2 | J91: 9 | K91: 37.6 | L91: 71.1 | M91: 10
A92: 90 | B92: 杨秀香 | C92: 11专业技术岗位 | D92: 4 | E92: 50201871101 | F92: 66 | G92: 7 | H92: 33 | I92: 70 | J92: 11 | K92: 35 | L92: 68 | M92: 11
A93: 91 | B93: 袁利梅 | C93: 11专业技术岗位 | D93: 4 | E93: 50201871317 | F93: 66 | G93: 7 | H93: 33 | I93: 68.6 | J93: 12 | K93: 34.3 | L93: 67.3 | M93: 12
A94: 92 | B94: 罗承敏 | C94: 11专业技术岗位 | D94: 4 | E94: 50201870909 | F94: 66 | G94: 7 | H94: 33 | I94: 缺考 | O94: 面试缺考
